[Event "41st Jacques-Lemans-Open 2022"]
[Site "St. Veit/Glan"]
[Date "2022.07.16"]
[Round "9.9"]
[White "Gschiel, Alexander"]
[Black "Caruso, Augusto"]
[Result "1/2-1/2"]
[ECO "D30"]
[WhiteElo "2215"]
[BlackElo "2132"]
[Annotator "ChessBase"]
[PlyCount "36"]
[EventDate "2022.07.09"]
[EventType "swiss"]
[EventCountry "AUT"]
[SourceTitle "playchess.com"]
[Source "ChessBase"]
[SourceQuality "1"]
[TimeControl "40/5400+30:1800+30"]

1. d4 {[%emt 0:00:06]} d5 {[%emt 0:00:16]} 2. c4 {[%emt 0:00:15]} e6 {[%emt 0:00:05]} 3. Nf3 {[%emt 0:00:11]} c5 {[%emt 0:00:23]} 4. cxd5 {[%emt 0:01:41]} exd5 {[%emt 0:00:06]} 5. g3 {[%emt 0:00:17]} Nc6 {[%emt 0:00:09]} 6. Bg2 {[%emt 0:00:55]} Nf6 {[%emt 0:00:07]} 7. O-O {[%emt 0:00:40]} c4 {[%emt 0:00:20]} 8. b3 {[%emt 0:04:06]} cxb3 {[%emt 0:00:20]} 9. Qxb3 {[%emt 0:00:44]} Be7 {[%emt 0:01:42]} 10. Ne5 {[%emt 0:05:25]} Nxd4 {[%emt 0:01:39]} 11. Qa4+ {[%emt 0:01:29]} Nc6 {[%emt 0:00:05]} 12. Nc3 {[%emt 0:01:40]} O-O {[%emt 0:13:30]} 13. Nxc6 {[%emt 0:04:27]} bxc6 {[%emt 0:00:01]} 14. Qxc6 {[%emt 0:02:12]} Be6 {[%emt 0:10:54]} 15. Nb5 {[%emt 0:10:48]} Qa5 {[%emt 0:17:39]} 16. Qc7 {[%emt 0:18:12]} Qxb5 {[%emt 0:04:30]} 17. Qxe7 {[%emt 0:00:08]} Qxe2 {[%emt 0:00:09]} 18. Be3 {[%emt 0:00:53]} Qa6 {[%emt 0:04:55]} 1/2-1/2

[Event "41st Jacques-Lemans-Open 2022"]
[Site "St. Veit/Glan"]
[Date "2022.07.16"]
[Round "9.10"]
[White "Frank, Emanuel"]
[Black "Novosel, Lovro"]
[Result "0-1"]
[ECO "A58"]
[WhiteElo "2160"]
[BlackElo "2255"]
[Annotator "ChessBase"]
[PlyCount "72"]
[EventDate "2022.07.09"]
[EventType "swiss"]
[EventCountry "AUT"]
[SourceTitle "playchess.com"]
[Source "ChessBase"]
[SourceQuality "1"]
[TimeControl "40/5400+30:1800+30"]

1. d4 {[%emt 0:00:03]} Nf6 {[%emt 0:00:10]} 2. c4 {[%emt 0:00:07]} c5 {[%emt 0:00:09]} 3. d5 {[%emt 0:00:10]} b5 {[%emt 0:00:05]} 4. cxb5 {[%emt 0:00:13]} a6 {[%emt 0:00:06]} 5. bxa6 {[%emt 0:01:34]} d6 {[%emt 0:00:26]} 6. Nc3 {[%emt 0:01:55]} g6 {[%emt 0:00:28]} 7. e4 {[%emt 0:05:12]} Bg7 {[%emt 0:01:27]} 8. Nf3 {[%emt 0:04:02]} O-O {[%emt 0:00:26]} 9. a7 {[%emt 0:05:58]} Rxa7 {[%emt 0:02:02]} 10. Be2 {[%emt 0:00:24]} Ba6 {[%emt 0:03:04]} 11. O-O {[%emt 0:02:36]} Nbd7 {[%emt 0:04:17]} 12. Re1 {[%emt 0:06:30]} Qa5 {[%emt 0:10:08]} 13. a4 {[%emt 0:17:04]} Rb8 {[%emt 0:02:33]} 14. Ra3 {[%emt 0:01:42]} Bxe2 {[%emt 0:07:18]} 15. Rxe2 {[%emt 0:03:52]} Ne8 {[%emt 0:05:46]} 16. Nb5 {[%emt 0:06:22]} Rab7 {[%emt 0:01:15]} 17. Nd2 {[%emt 0:01:38]} Nc7 {[%emt 0:01:45]} 18. Nc4 {[%emt 0:02:09]} Qa6 {[%emt 0:00:20]} 19. Nxc7 {[%emt 0:02:08]} Rxc7 {[%emt 0:01:22]} 20. b3 {[%emt 0:11:23]} Ne5 {[%emt 0:09:17]} 21. Nxe5 {[%emt 0:09:23]} Bxe5 {[%emt 0:00:15]} 22. Bd2 {[%emt 0:02:05]} Rcb7 {[%emt 0:00:51]} 23. Be1 {[%emt 0:00:25]} Rxb3 {[%emt 0:03:52]} 24. Rxb3 {[%emt 0:04:51]} Rxb3 {[%emt 0:00:05]} 25. Qxb3 {[%emt 0:01:15]} Qxe2 {[%emt 0:00:06]} 26. Qe3 {[%emt 0:00:40]} Qa2 {[%emt 0:00:13]} 27. a5 {[%emt 0:00:18]} Qa1 {[%emt 0:01:58]} 28. g3 {[%emt 0:02:22]} c4 {[%emt 0:00:35]} 29. Kg2 {[%emt 0:00:41]} c3 {[%emt 0:00:17]} 30. a6 {[%emt 0:01:02]} c2 {[%emt 0:01:44]} 31. a7 {[%emt 0:06:16]} Bd4 {[%emt 0:00:36]} 32. Bc3 {[%emt 0:01:29]} Bxc3 {[%emt 0:00:28]} 33. Qb6 {[%emt 0:00:37]} c1=Q {[%emt 0:00:50]} 34. Qb8+ {[%emt 0:00:26]} Kg7 {[%emt 0:00:05]} 35. a8=Q {[%emt 0:00:03]} Qf1+ {[%emt 0:00:19]} 36. Kf3 {[%emt 0:00:01]} Qd3+ {[%emt 0:00:11]} 0-1

[Event "41st Jacques-Lemans-Open 2022"]
[Site "St. Veit/Glan"]
[Date "2022.07.16"]
[Round "9.11"]
[White "Fahrner, Kurt"]
[Black "Schwab, Rene"]
[Result "1/2-1/2"]
[ECO "A00"]
[WhiteElo "2331"]
[BlackElo "2124"]
[Annotator "ChessBase"]
[PlyCount "51"]
[EventDate "2022.07.09"]
[EventType "swiss"]
[EventCountry "AUT"]
[SourceTitle "playchess.com"]
[Source "ChessBase"]
[SourceQuality "1"]
[TimeControl "40/5400+30:1800+30"]

1. g3 {[%emt 0:00:03]} c6 {[%emt 0:00:03]} 2. Bg2 {[%emt 0:00:05]} d5 {[%emt 0:00:04]} 3. d3 {[%emt 0:00:03]} g6 {[%emt 0:00:07]} 4. Nf3 {[%emt 0:14:09]} Bg7 {[%emt 0:00:21]} 5. O-O {[%emt 0:00:05]} Bg4 {[%emt 0:02:31]} 6. Nc3 {[%emt 0:05:15]} Nd7 {[%emt 0:03:25]} 7. e4 {[%emt 0:05:18]} dxe4 {[%emt 0:01:13]} 8. dxe4 {[%emt 0:10:40]} Ne5 {[%emt 0:02:25]} 9. Qe2 {[%emt 0:01:29]} Qd6 {[%emt 0:08:09]} 10. Rd1 {[%emt 0:05:05]} Qf6 {[%emt 0:01:49]} 11. Bf4 {[%emt 0:00:08]} Nxf3+ {[%emt 0:03:44]} 12. Bxf3 {[%emt 0:00:05]} Bxf3 {[%emt 0:00:23]} 13. Qxf3 {[%emt 0:00:04]} e5 {[%emt 0:02:35]} 14. Qg4 {[%emt 0:02:41]} exf4 {[%emt 0:01:36]} 15. Qd7+ {[%emt 0:00:05]} Kf8 {[%emt 0:00:06]} 16. Qxb7 {[%emt 0:01:48]} Re8 {[%emt 0:00:41]} 17. Rd7 {[%emt 0:00:27]} Ne7 {[%emt 0:09:32]} 18. Rad1 {[%emt 0:01:05]} Kg8 {[%emt 0:12:28]} 19. R7d6 {[%emt 0:01:25]} Qe5 {[%emt 0:01:41]} 20. Qd7 {[%emt 0:08:24]} Rf8 {[%emt 0:06:15]} 21. gxf4 {[%emt 0:06:15]} Qxf4 {[%emt 0:00:07]} 22. Qxe7 {[%emt 0:00:21]} Be5 {[%emt 0:00:16]} 23. R6d3 {[%emt 0:02:42]} Qxh2+ {[%emt 0:01:16]} 24. Kf1 {[%emt 0:00:05]} Qf4 {[%emt 0:04:28]} 25. Ke2 {[%emt 0:08:47]} Bf6 {[%emt 0:06:26]} 26. Qd6 {[%emt 0:00:25]} 1/2-1/2

[Event "41st Jacques-Lemans-Open 2022"]
[Site "St. Veit/Glan"]
[Date "2022.07.16"]
[Round "9.12"]
[White "Leitner, Gerald"]
[Black "Kruckenhauser, Arthur"]
[Result "1-0"]
[ECO "B76"]
[WhiteElo "2145"]
[BlackElo "2303"]
[Annotator "ChessBase"]
[PlyCount "83"]
[EventDate "2022.07.09"]
[EventType "swiss"]
[EventCountry "AUT"]
[SourceTitle "playchess.com"]
[Source "ChessBase"]
[SourceQuality "1"]
[TimeControl "40/5400+30:1800+30"]

1. e4 {[%emt 0:00:03]} c5 {[%emt 0:00:08]} 2. Nf3 {[%emt 0:00:00]} d6 {[%emt 0:00:20]} 3. d4 {[%emt 0:00:02]} cxd4 {[%emt 0:00:08]} 4. Nxd4 {[%emt 0:00:01]} Nf6 {[%emt 0:00:09]} 5. Nc3 {[%emt 0:00:00]} g6 {[%emt 0:00:08]} 6. Be3 {[%emt 0:00:01]} Bg7 {[%emt 0:00:08]} 7. f3 {[%emt 0:00:39]} O-O {[%emt 0:00:07]} 8. Qd2 {[%emt 0:00:03]} Nc6 {[%emt 0:00:04]} 9. O-O-O {[%emt 0:00:06]} d5 {[%emt 0:00:04]} 10. exd5 {[%emt 0:01:10]} Nxd5 {[%emt 0:00:07]} 11. Nxc6 {[%emt 0:00:08]} bxc6 {[%emt 0:00:05]} 12. Bd4 {[%emt 0:00:09]} Bxd4 {[%emt 0:00:07]} 13. Qxd4 {[%emt 0:00:02]} Qb6 {[%emt 0:00:07]} 14. Ne4 {[%emt 0:21:02]} Rb8 {[%emt 0:07:53]} 15. g4 {[%emt 0:15:51]} Ne3 {[%emt 0:11:28]} 16. Rd2 {[%emt 0:02:50]} Nxf1 {[%emt 0:00:14]} 17. Rxf1 {[%emt 0:00:01]} Qa6 {[%emt 0:00:09]} 18. Rd3 {[%emt 0:01:59]} Qxa2 {[%emt 0:11:19]} 19. Ra3 {[%emt 0:00:33]} Qd5 {[%emt 0:00:09]} 20. Rd1 {[%emt 0:02:31]} Rd8 {[%emt 0:09:56]} 21. Qxd5 {[%emt 0:03:05]} cxd5 {[%emt 0:03:11]} 22. Rxa7 Bxg4 {[%emt 0:01:36]} 23. fxg4 {[%emt 0:09:45]} dxe4 {[%emt 0:00:15]} 24. Rxd8+ {[%emt 0:00:03]} Rxd8 {[%emt 0:00:08]} 25. Rxe7 {[%emt 0:00:15]} f5 {[%emt 0:04:26]} 26. gxf5 {[%emt 0:00:01]} gxf5 {[%emt 0:00:05]} 27. Re5 {[%emt 0:00:21]} Rf8 {[%emt 0:01:28]} 28. Kd2 {[%emt 0:00:02]} Kg7 {[%emt 0:01:48]} 29. Ke3 {[%emt 0:02:49]} Kg6 {[%emt 0:01:56]} 30. Kf4 {[%emt 0:04:11]} Rf6 {[%emt 0:11:04]} 31. c4 {[%emt 0:07:04]} Rb6 {[%emt 0:11:22]} 32. Rb5 {[%emt 0:00:14]} Re6 {[%emt 0:00:21]} 33. Rxf5 {[%emt 0:02:39]} e3 {[%emt 0:00:06]} 34. Rg5+ {[%emt 0:00:03]} Kf6 {[%emt 0:00:04]} 35. Rg1 {[%emt 0:00:02]} e2 {[%emt 0:04:12]} 36. Re1 {[%emt 0:00:01]} Rc6 {[%emt 0:00:10]} 37. Rxe2 {[%emt 0:04:34]} Rxc4+ {[%emt 0:00:17]} 38. Ke3 {[%emt 0:00:01]} h5 {[%emt 0:03:45]} 39. Kd3 {[%emt 0:00:31]} Rg4 {[%emt 0:01:19]} 40. Kc3 {[%emt 0:02:21]} h4 {[%emt 0:00:06]} 41. b4 {[%emt 0:30:48]} Kf5 {[%emt 0:32:47]} 42. b5 {[%emt 0:04:03]} 1-0

[Event "41st Jacques-Lemans-Open 2022"]
[Site "St. Veit/Glan"]
[Date "2022.07.16"]
[Round "9.13"]
[White "Riemelmoser, Franz"]
[Black "Wendl, Philipp"]
[Result "1/2-1/2"]
[ECO "A11"]
[WhiteElo "2237"]
[BlackElo "2097"]
[Annotator "ChessBase"]
[PlyCount "117"]
[EventDate "2022.07.09"]
[EventType "swiss"]
[EventCountry "AUT"]
[SourceTitle "playchess.com"]
[Source "ChessBase"]
[SourceQuality "1"]
[TimeControl "40/5400+30:1800+30"]

1. c4 {[%emt 0:00:03]} c6 {[%emt 0:00:03]} 2. Nf3 {[%emt 0:00:10]} d5 {[%emt 0:00:04]} 3. e3 {[%emt 0:00:18]} Nf6 {[%emt 0:00:20]} 4. Nc3 {[%emt 0:00:09]} e6 {[%emt 0:00:14]} 5. b3 {[%emt 0:00:10]} Nbd7 {[%emt 0:00:24]} 6. Qc2 {[%emt 0:00:12]} Bd6 {[%emt 0:00:59]} 7. Bb2 {[%emt 0:00:09]} O-O {[%emt 0:00:29]} 8. Be2 {[%emt 0:00:09]} a6 {[%emt 0:01:37]} 9. d4 {[%emt 0:00:12]} Re8 {[%emt 0:03:07]} 10. O-O {[%emt 0:00:11]} b5 {[%emt 0:05:30]} 11. c5 {[%emt 0:01:31]} Bc7 {[%emt 0:02:48]} 12. a3 {[%emt 0:03:12]} a5 {[%emt 0:02:14]} 13. b4 {[%emt 0:00:21]} e5 {[%emt 0:09:12]} 14. dxe5 {[%emt 0:00:10]} Nxe5 {[%emt 0:00:07]} 15. Nxe5 {[%emt 0:01:15]} Bxe5 {[%emt 0:00:09]} 16. Rfe1 {[%emt 0:05:16]} g6 {[%emt 0:07:36]} 17. Bd3 {[%emt 0:02:25]} Bd7 {[%emt 0:10:18]} 18. Ne2 {[%emt 0:01:01]} Qe7 {[%emt 0:01:56]} 19. Bd4 {[%emt 0:03:28]} Bxd4 {[%emt 0:10:52]} 20. Nxd4 {[%emt 0:00:17]} Ng4 {[%emt 0:07:39]} 21. Be2 {[%emt 0:07:50]} Nxf2 {[%emt 0:22:17]} 22. Bxb5 {[%emt 0:04:01]} Ng4 {[%emt 0:00:21]} 23. Ba4 {[%emt 0:07:54]} axb4 {[%emt 0:03:28]} 24. axb4 {[%emt 0:00:24]} Qe5 {[%emt 0:04:06]} 25. Nf3 {[%emt 0:02:05]} Qh5 {[%emt 0:04:28]} 26. Qc3 {[%emt 0:02:41]} Qh6 {[%emt 0:00:32]} 27. Ra3 {[%emt 0:11:42]} Re4 {[%emt 0:01:38]} 28. h3 {[%emt 0:02:09]} Nxe3 {[%emt 0:01:26]} 29. Rxe3 {[%emt 0:00:16]} Rxa4 {[%emt 0:00:31]} 30. Rxe4 {[%emt 0:16:08]} Rxa3 {[%emt 0:00:10]} 31. Qxa3 {[%emt 0:06:11]} dxe4 {[%emt 0:00:07]} 32. Ne5 {[%emt 0:00:10]} Be8 {[%emt 0:00:09]} 33. Ng4 {[%emt 0:00:24]} Qg7 {[%emt 0:00:53]} 34. Qa8 {[%emt 0:00:31]} Kf8 {[%emt 0:00:33]} 35. Qd8 {[%emt 0:02:10]} f5 {[%emt 0:00:17]} 36. Nf6 {[%emt 0:14:41]} Qe7 {[%emt 0:00:11]} 37. Qd4 {[%emt 0:00:05]} Qg7 {[%emt 0:00:54]} 38. Qd6+ {[%emt 0:01:22]} Qe7 {[%emt 0:00:08]} 39. Nxe8 {[%emt 0:05:34]} Kxe8 {[%emt 0:00:01]} 40. Qxc6+ {[%emt 0:00:12]} Qd7 {[%emt 0:00:02]} 41. Qf6 {[%emt 0:30:23]} Qe7 {[%emt 0:04:17]} 42. Qd4 {[%emt 0:00:00]} e3 {[%emt 0:02:08]} 43. c6 {[%emt 0:00:00]} Kf7 {[%emt 0:03:51]} 44. Kf1 {[%emt 0:00:00]} g5 {[%emt 0:06:59]} 45. Ke2 {[%emt 0:00:00]} f4 {[%emt 0:00:26]} 46. h4 {[%emt 0:00:00]} h6 {[%emt 0:02:16]} 47. g3 {[%emt 0:00:00]} fxg3 {[%emt 0:04:16]} 48. hxg5 {[%emt 0:00:00]} g2 {[%emt 0:01:37]} 49. Qd5+ {[%emt 0:00:00]} Kg7 {[%emt 0:02:02]} 50. gxh6+ {[%emt 0:00:00]} Kxh6 {[%emt 0:00:07]} 51. Qxg2 {[%emt 0:00:00]} Qxb4 {[%emt 0:00:06]} 52. Qh3+ {[%emt 0:00:15]} Kg5 {[%emt 0:02:38]} 53. Qxe3+ {[%emt 0:00:24]} Kf6 {[%emt 0:00:03]} 54. Kf3 {[%emt 0:01:27]} Qc4 {[%emt 0:00:54]} 55. Qb6 {[%emt 0:01:05]} Ke6 {[%emt 0:03:05]} 56. Qe3+ {[%emt 0:04:03]} Kd6 {[%emt 0:00:25]} 57. Qf4+ {[%emt 0:00:06]} Qxf4+ {[%emt 0:00:05]} 58. Kxf4 {[%emt 0:00:08]} Kxc6 {[%emt 0:00:02]} 59. Ke4 1/2-1/2

[Event "41st Jacques-Lemans-Open 2022"]
[Site "St. Veit/Glan"]
[Date "2022.07.16"]
[Round "9.14"]
[White "Moeller, Dustin"]
[Black "Raeke, Philipp"]
[Result "1-0"]
[ECO "E92"]
[WhiteElo "2237"]
[BlackElo "1908"]
[Annotator "ChessBase"]
[PlyCount "43"]
[EventDate "2022.07.09"]
[EventType "swiss"]
[EventCountry "AUT"]
[SourceTitle "playchess.com"]
[Source "ChessBase"]
[SourceQuality "1"]
[TimeControl "40/5400+30:1800+30"]

1. c4 {[%emt 0:00:03]} Nf6 {[%emt 0:00:07]} 2. Nc3 {[%emt 0:00:11]} g6 {[%emt 0:00:03]} 3. d4 {[%emt 0:00:24]} Bg7 {[%emt 0:00:07]} 4. e4 {[%emt 0:00:06]} d6 {[%emt 0:00:04]} 5. Be2 {[%emt 0:00:06]} O-O {[%emt 0:00:12]} 6. Nf3 {[%emt 0:00:05]} e5 {[%emt 0:00:11]} 7. Be3 {[%emt 0:00:06]} exd4 {[%emt 0:00:39]} 8. Nxd4 {[%emt 0:00:07]} Re8 {[%emt 0:00:04]} 9. f3 {[%emt 0:00:08]} c6 {[%emt 0:00:21]} 10. Bf2 {[%emt 0:00:07]} d5 {[%emt 0:00:21]} 11. exd5 {[%emt 0:00:05]} cxd5 {[%emt 0:00:10]} 12. O-O {[%emt 0:00:07]} Nc6 {[%emt 0:00:09]} 13. c5 {[%emt 0:00:05]} Re5 {[%emt 0:00:11]} 14. Qd2 {[%emt 0:00:08]} Qf8 {[%emt 0:02:12]} 15. Ncb5 {[%emt 0:00:15]} Bh6 {[%emt 0:04:35]} 16. Qc3 {[%emt 0:00:08]} Nd7 {[%emt 0:12:42]} 17. Rfe1 {[%emt 0:10:14]} Qe7 {[%emt 0:25:07]} 18. Bf1 {[%emt 0:03:54]} f6 {[%emt 0:10:18]} 19. Nc7 {[%emt 0:03:02]} Rb8 {[%emt 0:08:45]} 20. Nxd5 {[%emt 0:00:08]} Qf8 {[%emt 0:00:01]} 21. Bc4 {[%emt 0:03:37]} Kh8 {[%emt 0:00:29]} 22. b4 {[%emt 0:01:25]} 1-0

[Event "41st Jacques-Lemans-Open 2022"]
[Site "St. Veit/Glan"]
[Date "2022.07.16"]
[Round "9.15"]
[White "Blasge, Tobias"]
[Black "Manhardt, Thomas"]
[Result "0-1"]
[ECO "A89"]
[WhiteElo "1826"]
[BlackElo "2227"]
[Annotator "ChessBase"]
[PlyCount "142"]
[EventDate "2022.07.09"]
[EventType "swiss"]
[EventCountry "AUT"]
[SourceTitle "playchess.com"]
[Source "ChessBase"]
[SourceQuality "1"]
[TimeControl "40/5400+30:1800+30"]

1. d4 {[%emt 0:00:03]} f5 {[%emt 0:00:09]} 2. Nf3 {[%emt 0:00:06]} Nf6 {[%emt 0:00:17]} 3. g3 {[%emt 0:00:05]} g6 {[%emt 0:00:06]} 4. Bg2 {[%emt 0:00:05]} Bg7 {[%emt 0:00:04]} 5. O-O {[%emt 0:00:09]} O-O {[%emt 0:00:14]} 6. c4 {[%emt 0:00:07]} d6 {[%emt 0:00:05]} 7. Nc3 {[%emt 0:00:04]} Nc6 {[%emt 0:01:06]} 8. d5 {[%emt 0:01:54]} Ne5 {[%emt 0:13:42]} 9. Nxe5 {[%emt 0:00:07]} dxe5 {[%emt 0:00:05]} 10. Qb3 {[%emt 0:00:05]} Kh8 {[%emt 0:00:47]} 11. Rd1 {[%emt 0:01:40]} h6 {[%emt 0:00:29]} 12. c5 {[%emt 0:09:00]} g5 {[%emt 0:01:33]} 13. a4 {[%emt 0:04:12]} a6 {[%emt 0:01:45]} 14. a5 {[%emt 0:00:09]} Rb8 {[%emt 0:00:43]} 15. Na4 {[%emt 0:12:55]} Bd7 {[%emt 0:10:27]} 16. Qc2 {[%emt 0:06:42]} Qe8 {[%emt 0:10:15]} 17. c6 {[%emt 0:02:00]} bxc6 {[%emt 0:00:42]} 18. dxc6 {[%emt 0:00:06]} Bc8 {[%emt 0:00:24]} 19. Bd2 {[%emt 0:12:36]} e4 {[%emt 0:17:36]} 20. e3 {[%emt 0:00:38]} Ng4 {[%emt 0:05:17]} 21. Bc3 {[%emt 0:09:39]} Ne5 {[%emt 0:01:44]} 22. Rac1 {[%emt 0:05:55]} Nf3+ {[%emt 0:04:08]} 23. Bxf3 {[%emt 0:00:30]} exf3 {[%emt 0:00:05]} 24. Bxg7+ {[%emt 0:03:30]} Kxg7 {[%emt 0:00:06]} 25. Qc3+ {[%emt 0:08:55]} Rf6 {[%emt 0:07:00]} 26. Qe5 {[%emt 0:01:05]} f4 {[%emt 0:05:59]} 27. exf4 {[%emt 0:07:58]} gxf4 {[%emt 0:00:28]} 28. Nc5 {[%emt 0:04:57]} fxg3 {[%emt 0:01:31]} 29. hxg3 {[%emt 0:00:07]} Rb5 {[%emt 0:04:40]} 30. Rd7 {[%emt 0:01:27]} Kf7 {[%emt 0:08:01]} 31. Qh5+ {[%emt 0:06:58]} Kf8 {[%emt 0:00:32]} 32. Qxe8+ {[%emt 0:00:27]} Kxe8 {[%emt 0:00:05]} 33. Rxc7 {[%emt 0:00:10]} Kd8 {[%emt 0:01:00]} 34. Ra7 {[%emt 0:00:25]} Rxc6 {[%emt 0:00:39]} 35. Rd1+ {[%emt 0:01:48]} Ke8 {[%emt 0:00:30]} 36. Ne4 {[%emt 0:00:48]} Bf5 {[%emt 0:01:10]} 37. Nc3 {[%emt 0:00:59]} Rxb2 {[%emt 0:00:39]} 38. Nd5 {[%emt 0:00:21]} Re2 {[%emt 0:00:48]} 39. Ne3 {[%emt 0:00:35]} Be6 {[%emt 0:00:51]} 40. Ra8+ {[%emt 0:00:26]} Kf7 {[%emt 0:00:24]} 41. Rh8 {[%emt 0:05:36]} Bb3 {[%emt 0:14:58]} 42. Rb1 {[%emt 0:05:06]} Ba2 {[%emt 0:00:36]} 43. Rd1 {[%emt 0:01:11]} Kg7 {[%emt 0:01:52]} 44. Rhd8 {[%emt 0:01:11]} Be6 {[%emt 0:01:18]} 45. Re8 {[%emt 0:04:13]} Kf6 {[%emt 0:00:37]} 46. Rh8 {[%emt 0:00:50]} Kg6 {[%emt 0:01:12]} 47. Re8 {[%emt 0:00:28]} Kf7 {[%emt 0:01:52]} 48. Rh8 {[%emt 0:00:12]} Bb3 {[%emt 0:00:26]} 49. Rb1 {[%emt 0:00:59]} Ba2 {[%emt 0:00:24]} 50. Rd1 {[%emt 0:00:27]} Re6 {[%emt 0:05:04]} 51. Rhd8 {[%emt 0:08:42]} Re5 {[%emt 0:01:40]} 52. R8d4 {[%emt 0:01:03]} Re6 {[%emt 0:01:48]} 53. Rd8 {[%emt 0:00:26]} Rf6 {[%emt 0:00:48]} 54. Ng4 {[%emt 0:02:20]} Rg6 {[%emt 0:01:58]} 55. Ne3 {[%emt 0:00:14]} h5 {[%emt 0:02:39]} 56. R8d4 {[%emt 0:01:14]} Be6 {[%emt 0:00:40]} 57. Rf4+ {[%emt 0:01:40]} Rf6 {[%emt 0:00:05]} 58. Rb4 {[%emt 0:00:23]} Ra2 {[%emt 0:01:16]} 59. Nd5 {[%emt 0:01:25]} Rf5 {[%emt 0:01:12]} 60. Ne3 {[%emt 0:00:49]} Rfxa5 {[%emt 0:01:07]} 61. Rf4+ {[%emt 0:00:10]} Kg6 {[%emt 0:00:31]} 62. Rxf3 {[%emt 0:00:34]} Ra1 {[%emt 0:00:23]} 63. Rxa1 {[%emt 0:01:02]} Rxa1+ {[%emt 0:00:05]} 64. Kg2 {[%emt 0:00:06]} a5 {[%emt 0:00:24]} 65. Rf4 {[%emt 0:00:26]} Bb3 {[%emt 0:01:36]} 66. Nc4 {[%emt 0:00:41]} a4 {[%emt 0:01:04]} 67. Nd2 {[%emt 0:01:11]} Bd5+ {[%emt 0:00:12]} 68. f3 {[%emt 0:00:15]} a3 {[%emt 0:00:34]} 69. Ra4 {[%emt 0:01:38]} a2 {[%emt 0:00:32]} 70. Ra6+ {[%emt 0:00:34]} e6 {[%emt 0:00:24]} 71. Ne4 {[%emt 0:00:23]} Rc1 0-1

[Event "41st Jacques-Lemans-Open 2022"]
[Site "St. Veit/Glan"]
[Date "2022.07.16"]
[Round "9.16"]
[White "Miazhynski, Yuri"]
[Black "Hechl, Fabian"]
[Result "1/2-1/2"]
[ECO "E92"]
[WhiteElo "2166"]
[BlackElo "1991"]
[Annotator "ChessBase"]
[PlyCount "22"]
[EventDate "2022.07.09"]
[EventType "swiss"]
[EventCountry "AUT"]
[SourceTitle "playchess.com"]
[Source "ChessBase"]
[SourceQuality "1"]
[TimeControl "40/5400+30:1800+30"]

1. d4 {[%emt 0:00:06]} Nf6 {[%emt 0:00:05]} 2. c4 {[%emt 0:00:08]} g6 {[%emt 0:00:04]} 3. Nc3 {[%emt 0:00:12]} Bg7 {[%emt 0:00:04]} 4. e4 {[%emt 0:00:17]} d6 {[%emt 0:00:09]} 5. Nf3 {[%emt 0:00:21]} O-O {[%emt 0:00:16]} 6. Be2 {[%emt 0:00:35]} e5 {[%emt 0:00:27]} 7. d5 {[%emt 0:00:27]} a5 {[%emt 0:00:29]} 8. h3 {[%emt 0:00:40]} Nbd7 {[%emt 0:00:28]} 9. Be3 {[%emt 0:00:28]} b6 {[%emt 0:00:31]} 10. Nd2 {[%emt 0:01:27]} Nc5 {[%emt 0:01:15]} 11. f3 {[%emt 0:00:29]} Nh5 {[%emt 0:03:09]} 1/2-1/2